[Event "RLP-ch Rapid 2024"]
[Site "Landau"]
[Date "2024.05.04"]
[Round "7.7"]
[White "Louis, Volker"]
[Black "Bruch, Jochen"]
[Result "1/2-1/2"]
[ECO "B54"]
[WhiteElo "2022"]
[BlackElo "2181"]
[Annotator "NA RC"]
[PlyCount "44"]
[EventDate "2024.05.03"]
[EventType "swiss"]
[EventCountry "GER"]
[SourceTitle "playchess.com"]
[Source "ChessBase"]
[SourceQuality "1"]
[TimeControl "900+5"]

1. d4 {[%emt 0:00:02]} Nf6 {[%emt 0:00:01]} 2. c4 {[%emt 0:00:01]} c5 {[%emt 0:00:01]} 3. Nf3 {[%emt 0:00:02]} cxd4 {[%emt 0:00:02]} 4. Nxd4 {[%emt 0:00:02]} e6 {[%emt 0:00:02]} 5. Nc3 {[%emt 0:00:03]} a6 {[%emt 0:00:01]} 6. e4 {[%emt 0:00:03]} d6 {[%emt 0:00:01]} 7. Be2 {[%emt 0:00:04]} Be7 {[%emt 0:00:01]} 8. O-O {[%emt 0:00:02]} O-O {[%emt 0:00:03]} 9. Be3 {[%emt 0:00:02]} Bd7 {[%emt 0:00:01]} 10. Qd2 {[%emt 0:00:03]} Nc6 {[%emt 0:00:02]} 11. Rfd1 {[%emt 0:00:03]} Rc8 {[%emt 0:00:02]} 12. f3 {[%emt 0:00:03]} Qc7 {[%emt 0:00:01]} 13. Bf1 {[%emt 0:00:02]} Rfd8 {[%emt 0:00:02]} 14. Qf2 {[%emt 0:00:02]} Qb8 {[%emt 0:00:02]} 15. Rac1 {[%emt 0:00:02]} Be8 {[%emt 0:00:01]} 16. b3 {[%emt 0:00:02]} Nxd4 {[%emt 0:00:17]} 17. Bxd4 {[%emt 0:00:01]} b5 {[%emt 0:00:02]} 18. cxb5 {[%emt 0:00:24]} axb5 {[%emt 0:00:01]} 19. Bb6 {[%emt 0:00:26]} Rd7 {[%emt 0:00:03]} 20. a4 {[%emt 0:00:18]} b4 {[%emt 0:00:10]} 21. Nb5 {[%emt 0:00:14]} Rxc1 {[%emt 0:00:19]} 22. Rxc1 {[%emt 0:00:01]} d5 {[%emt 0:00:01]} 1/2-1/2

[Event "RLP-ch Rapid 2024"]
[Site "Landau"]
[Date "2024.05.04"]
[Round "7.8"]
[White "Esswein, Karlheinz"]
[Black "Bender, Tim"]
[Result "0-1"]
[ECO "E60"]
[WhiteElo "2022"]
[BlackElo "1850"]
[Annotator "NA"]
[PlyCount "85"]
[EventDate "2024.05.03"]
[EventType "swiss"]
[EventCountry "GER"]
[SourceTitle "playchess.com"]
[Source "ChessBase"]
[SourceQuality "1"]
[TimeControl "900+5"]

1. Nf3 {[%emt 0:00:01]} Nf6 {[%emt 0:00:03]} 2. b3 {[%emt 0:00:02]} g6 {[%emt 0:00:04]} 3. Bb2 {[%emt 0:00:01]} Bg7 {[%emt 0:00:01]} 4. c4 {[%emt 0:00:13]} O-O {[%emt 0:00:09]} 5. e3 {[%emt 0:00:04]} d6 {[%emt 0:00:22]} 6. d4 {[%emt 0:00:07]} c5 {[%emt 0:00:37]} 7. d5 {[%emt 0:00:15]} e6 {[%emt 0:00:01]} 8. Be2 {[%emt 0:01:07]} exd5 {[%emt 0:00:12]} 9. cxd5 {[%emt 0:00:02]} a6 {[%emt 0:00:18]} 10. a4 {[%emt 0:00:03]} Bf5 {[%emt 0:00:28]} 11. Nc3 {[%emt 0:01:10]} Nbd7 {[%emt 0:00:15]} 12. O-O {[%emt 0:00:12]} b5 {[%emt 0:00:23]} 13. axb5 {[%emt 0:00:10]} axb5 {[%emt 0:00:01]} 14. Rxa8 {[%emt 0:00:09]} Qxa8 {[%emt 0:00:03]} 15. Bxb5 {[%emt 0:01:16]} Nb6 {[%emt 0:00:40]} 16. Bc6 {[%emt 0:00:09]} Qb8 {[%emt 0:00:14]} 17. Qd2 {[%emt 0:01:06]} Bd7 {[%emt 0:00:15]} 18. e4 {[%emt 0:00:27]} Bxc6 {[%emt 0:00:18]} 19. dxc6 {[%emt 0:00:02]} Rc8 {[%emt 0:01:22]} 20. Re1 {[%emt 0:01:39]} Rxc6 {[%emt 0:00:15]} 21. Nd5 {[%emt 0:00:26]} Nbxd5 {[%emt 0:00:20]} 22. exd5 {[%emt 0:00:02]} Rb6 {[%emt 0:00:18]} 23. Bxf6 {[%emt 0:01:07]} Bxf6 {[%emt 0:00:02]} 24. Qf4 {[%emt 0:00:19]} Kg7 {[%emt 0:01:19]} 25. h4 {[%emt 0:00:35]} Rb4 {[%emt 0:00:16]} 26. Qd2 {[%emt 0:00:30]} Rxb3 {[%emt 0:00:12]} 27. h5 {[%emt 0:00:29]} Bc3 {[%emt 0:01:07]} 28. h6+ {[%emt 0:00:13]} Kf8 {[%emt 0:00:05]} 29. Qf4 {[%emt 0:00:52]} Bxe1 {[%emt 0:00:02]} 30. Ng5 {[%emt 0:00:41]} f5 {[%emt 0:01:36]} 31. Nxh7+ {[%emt 0:00:40]} Kf7 {[%emt 0:02:02]} 32. Ng5+ {[%emt 0:00:13]} Kf6 {[%emt 0:00:27]} 33. h7 {[%emt 0:00:31]} Bxf2+ {[%emt 0:00:29]} 34. Kxf2 {[%emt 0:01:07]} Rb1 {[%emt 0:00:41]} 35. Ne4+ {[%emt 0:00:47]} Kg7 {[%emt 0:00:31]} 36. Nxd6 {[%emt 0:00:30]} Qb2+ {[%emt 0:00:18]} 37. Kg3 {[%emt 0:00:10]} Qc3+ {[%emt 0:01:46]} 38. Kh2 {[%emt 0:00:14]} Qd4 {[%emt 0:00:35]} 39. h8=Q+ {[%emt 0:00:31]} Kxh8 {[%emt 0:00:02]} 40. Qh6+ {[%emt 0:00:01]} Kg8 {[%emt 0:00:02]} 41. Qxg6+ {[%emt 0:00:07]} Qg7 {[%emt 0:00:04]} 42. Qe8+ {[%emt 0:00:07]} Kh7 {[%emt 0:00:02]} 43. Nxf5 {[%emt 0:00:13]} 0-1

[Event "RLP-ch Rapid 2024"]
[Site "Landau"]
[Date "2024.05.04"]
[Round "7.9"]
[White "Anissimova, Mariya"]
[Black "Orschiedt-Eghbali, Anke"]
[Result "1/2-1/2"]
[ECO "B22"]
[WhiteElo "1850"]
[BlackElo "1761"]
[Annotator "NA RC"]
[PlyCount "63"]
[EventDate "2024.05.03"]
[EventType "swiss"]
[EventCountry "GER"]
[SourceTitle "playchess.com"]
[Source "ChessBase"]
[SourceQuality "1"]
[TimeControl "900+5"]

1. e4 {[%emt 0:00:02]} g6 {[%emt 0:00:00]} 2. d4 {[%emt 0:00:02]} c6 {[%emt 0:00:01]} 3. c4 {[%emt 0:00:25]} d5 {[%emt 0:00:04]} 4. cxd5 {[%emt 0:00:04]} cxd5 {[%emt 0:00:02]} 5. e5 {[%emt 0:00:02]} Nc6 {[%emt 0:15:23]} 6. Nc3 {[%emt 0:00:05]} h5 {[%emt 0:00:00]} 7. Be3 {[%emt 0:00:22]} Nh6 {[%emt 0:00:00]} 8. Bd3 {[%emt 0:00:52]} Bf5 {[%emt 0:00:00]} 9. Nge2 {[%emt 0:00:34]} Bxd3 {[%emt 0:00:00]} 10. Qxd3 {[%emt 0:00:02]} e6 {[%emt 0:00:00]} 11. O-O {[%emt 0:00:11]} Nf5 {[%emt 0:00:00]} 12. Rac1 {[%emt 0:00:41]} Nxe3 {[%emt 0:00:00]} 13. fxe3 {[%emt 0:00:03]} Bh6 {[%emt 0:00:00]} 14. Nf4 {[%emt 0:00:46]} Qg5 {[%emt 0:00:00]} 15. Nb5 {[%emt 0:00:55]} O-O {[%emt 0:00:00]} 16. Rf3 {[%emt 0:01:28]} Qf5 {[%emt 0:00:00]} 17. Qxf5 {[%emt 0:00:16]} gxf5 {[%emt 0:00:00]} 18. Nxh5 {[%emt 0:00:05]} Kh7 {[%emt 0:00:00]} 19. Nf6+ {[%emt 0:00:03]} Kh8 {[%emt 0:00:00]} 20. Nd6 {[%emt 0:00:59]} Nxd4 {[%emt 0:00:00]} 21. Rh3 {[%emt 0:02:24]} Ne2+ {[%emt 0:00:00]} 22. Kf2 {[%emt 0:00:02]} Nxc1 {[%emt 0:00:00]} 23. Rxh6+ {[%emt 0:00:01]} Kg7 {[%emt 0:00:00]} 24. Rh7+ {[%emt 0:00:02]} Kg6 {[%emt 0:01:35]} 25. Rh3 {[%emt 0:02:10]} Nd3+ {[%emt 0:00:00]} 26. Ke2 {[%emt 0:00:18]} Nxe5 {[%emt 0:00:00]} 27. Nh5 {[%emt 0:00:09]} Rh8 {[%emt 0:00:00]} 28. Nf4+ {[%emt 0:00:24]} Kf6 {[%emt 0:00:00]} 29. Rg3 Rxh2 {[%emt 0:00:00]} 30. b3 {[%emt 0:00:10]} b6 {[%emt 0:00:00]} 31. Nb5 {[%emt 0:00:05]} Rc8 {[%emt 0:00:00]} 32. Nd4 {[%emt 0:00:05]} 1/2-1/2